bitfinex/quotes_ETHUSD_20260106
["timestamp","ask_amount","ask_price","bid_price","bid_amount"]
[1767701716684,0.002,3237.3,3236.6,0.97056701]
[1767701717593,0.002,3237.3,3236.7,0.96196805]
[1767701718668,0.002,3237.3,3236.3,0.001]
[1767701718669,0.95784283,3237.2,3236.3,0.001]
[1767701718855,0.95784283,3237.2,3236.3,0.00962227]
[1767701719061,1.11921094,3237.2,3236.0,0.0096225]
[1767701719279,1.11921094,3237.2,3236.0,0.001]
[1767701719664,0.95784283,3237.1,3236.0,0.001]
[1767701720590,0.95784283,3237.1,3236.0,0.96296805]
[1767701722189,0.95784283,3237.0,3236.0,0.96296805]
[1767701722369,3.08924097,3237.1,3236.0,0.96296805]
[1767701722370,0.95784283,3236.8,3236.0,0.96296805]
[1767701723770,0.95784283,3236.8,3236.0,0.001]
[1767701726398,0.95784283,3236.3,3235.7,0.001]
[1767701726598,1.76684283,3236.2,3235.7,0.001]
[1767701730107,0.95784283,3236.1,3235.7,0.001]
[1767701731107,1.09270846,3236.4,3235.7,0.94431183]
[1767701731306,0.93164714,3236.2,3235.7,0.001]
[1767701731515,0.81,3236.3,3235.7,0.001]
[1767701731811,1.6961577,3236.4,3235.7,0.94431183]
[1767701732375,6.2526786,3236.7,3235.7,0.94431183]
[1767701732376,1e-08,3236.2,3235.7,0.94431183]
[1767701733428,0.72999701,3236.5,3235.8,15.641525]
[1767701733617,0.72999701,3236.5,3235.9,1.65858368]
[1767701733822,0.81,3236.6,3235.8,0.94331183]
[1767701734313,0.81,3236.7,3235.8,0.94331183]
[1767701734514,0.002,3236.8,3236.0,0.94331183]
[1767701736316,0.002,3236.8,3235.8,0.0247173]
[1767701736317,0.002,3236.8,3236.2,0.94331183]
[1767701736556,0.002,3237.1,3236.4,0.94331183]
[1767701740147,1e-08,3237.1,3236.4,0.94331183]
[1767701740456,1e-08,3237.1,3236.3,0.94431183]
[1767701740757,1e-08,3237.1,3236.5,0.94331183]
[1767701745281,0.72999702,3237.1,3236.3,0.001]
[1767701745491,1e-08,3237.1,3236.3,0.94431183]
[1767701760563,0.76090142,3237.1,3236.3,0.001]
[1767701760891,0.72999701,3237.0,3236.3,0.001]
[1767701763011,1e-08,3237.1,3236.4,0.97467836]
[1767701763160,0.809,3237.0,3236.4,0.97467836]
[1767701763691,1e-08,3237.1,3236.4,0.97467836]
[1767701763896,1.53899701,3237.0,3236.6,0.001]
[1767701765188,0.809,3237.0,3236.6,0.001]
[1767701765688,0.809,3237.0,3236.6,0.97567836]
[1767701767099,1.53899701,3237.0,3236.6,0.001]
[1767701767602,0.809,3237.0,3236.6,0.97567836]
[1767701770703,1e-08,3237.1,3236.6,0.001]
[1767701770998,0.80900001,3237.1,3236.6,0.001]
[1767701771202,0.80900001,3237.1,3236.6,0.97567836]
[1767701773206,1.53899702,3237.1,3236.6,0.001]
[1767701773706,0.80900001,3237.1,3236.7,0.97467836]
[1767701775601,0.80900001,3237.1,3236.9,0.001]
[1767701784384,1.53899702,3237.1,3236.9,0.001]
[1767701785016,0.80900001,3237.1,3236.9,0.001]
[1767701785519,1.53899702,3237.1,3236.9,0.001]
[1767701785729,0.80900001,3237.1,3236.9,0.001]
[1767701786230,0.80900001,3237.1,3236.6,0.001]
[1767701786529,0.0309044,3237.0,3236.6,0.001]
[1767701786892,0.83990441,3237.1,3236.6,0.97567836]
[1767701787091,0.80900001,3237.1,3236.6,0.97567836]
[1767701794614,0.99983325,3237.0,3236.6,0.001]
[1767701795011,0.0309044,3237.0,3236.6,0.001]
[1767701795217,0.0309044,3237.0,3236.6,0.99959026]
[1767701795514,0.0309044,3237.0,3236.6,0.001]
[1767701795714,0.99983325,3236.9,3236.6,0.001]
[1767701797428,0.80900001,3237.1,3236.6,0.001]
[1767701797616,0.0309044,3237.0,3236.6,0.99959026]
[1767701798579,0.0309044,3237.0,3236.6,0.001]
[1767701798739,0.99983325,3236.9,3236.6,0.001]
[1767701799110,0.99983325,3237.0,3236.9,0.001]
[1767701799512,0.80900001,3237.1,3236.9,0.001]
[1767701799842,0.809,3237.2,3236.9,0.99959026]
[1767701800139,0.002,3237.3,3236.9,0.001]
[1767701800346,0.002,3237.3,3237.0,0.99859026]
[1767701800641,0.002,3237.3,3236.9,0.001]
[1767701802654,0.002,3237.3,3237.0,0.99859026]
[1767701803739,0.002,3237.9,3237.4,0.99859026]
[1767701803945,0.41014085,3237.9,3237.7,0.99859026]
[1767701804247,0.41014085,3237.9,3236.7,0.99859026]
[1767701804248,0.40814088,3237.9,3236.7,0.99859026]
[1767701804447,0.002,3238.0,3236.7,0.99859026]
[1767701804645,0.002,3238.0,3237.9,0.01906134]
[1767701804847,0.002,3238.0,3237.1,0.99859026]
[1767701805753,1.00183325,3238.0,3237.1,0.99859026]
[1767701806346,3.08813538,3238.2,3237.7,0.99859026]
[1767701806540,0.87733177,3238.1,3236.8,0.72382247]
[1767701806738,0.87733177,3238.1,3237.4,0.72382247]
[1767701807453,0.99983325,3238.0,3236.7,0.72382247]
[1767701807853,6.17627076,3238.2,3236.7,0.72382247]
[1767701808324,0.99983325,3238.1,3236.7,0.72382247]
[1767701808523,6.17808004,3238.3,3236.7,0.72382247]
[1767701808824,1.36720956,3238.2,3236.7,0.72382247]
[1767701809350,0.99983325,3238.1,3236.7,0.72382247]
[1767701811134,4.08815937,3238.0,3236.8,0.72382247]
[1767701811324,4.89715937,3238.0,3236.8,0.72382247]
[1767701811546,0.002,3237.8,3236.8,0.72382247]
[1767701812348,1.00183325,3237.8,3236.7,0.72382247]
[1767701812957,0.002,3237.8,3236.7,0.72382247]
[1767701813855,0.002,3237.8,3236.9,0.72382247]
[1767701815154,0.99983325,3237.7,3236.9,0.72382247]
[1767701815457,0.002,3237.8,3236.9,0.72382247]
[1767701818964,0.9705198,3237.7,3236.9,0.72382247]
[1767701819165,0.002,3237.8,3236.9,0.72382247]
[1767701819466,0.002,3237.8,3237.1,0.72382247]
[1767701819641,0.00026528,3237.8,3237.6,0.72382247]
[1767701820237,0.00026528,3237.8,3237.1,0.72382247]
[1767701820433,0.00026528,3237.8,3237.0,0.03089279]
[1767701820666,0.9705198,3238.0,3237.0,0.974321]
[1767701822269,0.9705198,3238.0,3236.9,0.83989183]
[1767701823250,0.9705198,3238.0,3236.9,1.74122871]
[1767701823451,0.9705198,3238.0,3237.0,0.90133688]
[1767701823650,0.9705198,3238.0,3237.1,0.17412287]
[1767701823872,0.9705198,3238.0,3237.1,1.07545975]
[1767701824673,0.9705198,3238.0,3237.1,0.17412287]
[1767701824867,0.9705198,3238.0,3236.9,0.83989183]
[1767701825776,0.9705198,3238.0,3237.0,0.90233688]
[1767701828154,0.9705198,3238.0,3237.0,0.001]
[1767701828773,0.99788394,3237.7,3237.0,0.001]
[1767701830671,5.43096557,3237.8,3237.0,0.90233688]
[1767701833091,4.08630684,3237.9,3237.0,0.90233688]
[1767701833380,5.43096557,3237.8,3237.0,0.90233688]
[1767701834187,0.99788394,3237.7,3237.0,0.001]
[1767701835284,5.43096557,3237.8,3237.1,0.90133688]
[1767701836280,3.09024575,3238.1,3237.1,0.90133688]
[1767701836478,0.002,3238.1,3237.1,0.90133688]
[1767701837171,0.99788394,3238.0,3237.1,0.90133688]
[1767701837377,0.002,3238.1,3237.1,0.90133688]
[1767701838654,0.002,3238.1,3237.3,0.90133688]
[1767701838851,0.002,3238.1,3237.5,0.90133688]
[1767701839872,0.002,3238.4,3237.7,0.90133688]
[1767701843496,0.99788394,3238.3,3237.4,0.809]
[1767701843664,0.99788394,3238.3,3237.5,0.17103369]
[1767701844662,3.08804292,3238.3,3237.5,0.17103369]
[1767701844959,0.98687261,3238.2,3237.5,0.17103369]
[1767701845161,5.42896351,3237.7,3237.2,0.001]
[1767701845361,0.99788394,3237.5,3237.2,0.001]
[1767701845764,0.99788394,3237.5,3237.0,0.001]
[1767701845965,0.99788394,3237.5,3237.0,0.3841]
[1767701847869,0.99788394,3237.5,3237.0,0.001]
[1767701850297,8.5197051,3237.6,3237.0,0.001]
[1767701850598,6.42884951,3237.6,3237.0,0.001]
[1767701850769,0.99788394,3237.5,3237.0,0.001]
[1767701851369,0.99788394,3237.5,3236.7,0.809]
[1767701851805,0.98980019,3237.2,3236.6,0.00068727]
[1767701852007,5.42796248,3237.0,3236.4,0.809]
[1767701852180,5.43096557,3237.1,3236.4,1.79412354]
[1767701852381,5.43096557,3237.1,3236.4,0.98512354]
[1767701852594,6.42176679,3237.1,3236.4,0.98512354]
[1767701852810,5.43096557,3237.1,3236.4,0.98512354]
[1767701852973,5.43096557,3237.1,3236.3,0.81]
[1767701852974,5.43096557,3237.1,3236.5,1.16463589]
[1767701853174,6.42176679,3237.4,3236.5,1.16463589]
[1767701853977,9.51071163,3237.4,3236.5,1.16463589]
[1767701856281,12.59965647,3237.4,3236.5,1.16463589]
[1767701858213,9.51071163,3237.4,3236.5,1.16463589]
[1767701858711,4.07974606,3237.4,3236.5,1.16463589]
[1767701859033,0.99080122,3238.2,3237.1,0.98512354]
[1767701859199,3.08804002,3238.3,3237.2,0.98512354]
[1767701859525,9.50980681,3238.3,3237.4,0.98512354]
[1767701859685,9.50980681,3238.3,3237.5,0.01770677]
[1767701859890,9.50980681,3238.3,3237.5,1.00283031]
[1767701860638,0.99080122,3238.2,3237.5,0.01770677]
[1767701861515,8.51900559,3238.3,3237.5,0.01770677]
[1767701861815,9.50980681,3238.3,3237.5,0.01770677]
[1767701862013,0.002,3238.4,3237.5,1.00283031]
[1767701863917,0.002,3238.4,3237.5,0.01770677]
[1767701864085,5.43296557,3238.4,3237.5,1.00283031]
[1767701864487,0.002,3238.4,3237.5,1.00283031]
[1767701865001,0.99280122,3238.4,3237.5,0.01770677]
[1767701865207,0.002,3238.4,3237.6,0.98512354]
[1767701865701,0.99280122,3238.4,3237.5,0.01770677]
[1767701866022,0.99080122,3238.2,3237.5,0.01770677]
[1767701867001,0.99080122,3238.0,3237.5,0.01770677]
[1767701867203,0.0008393,3238.4,3237.7,0.0247173]
[1767701867381,0.0008393,3238.4,3237.9,0.0247173]
[1767701867585,0.002,3238.6,3237.7,0.809]
[1767701867586,0.99080122,3238.5,3237.7,0.809]
[1767701870500,0.99080122,3238.5,3237.8,0.18188408]
[1767701872015,0.002,3238.6,3237.9,0.98512354]
[1767701874495,0.99280122,3238.6,3237.8,0.18188408]
[1767701875512,0.99280122,3238.6,3237.7,0.809]
[1767701876187,0.99280122,3238.6,3237.6,0.809]
[1767701876928,0.99280122,3238.6,3237.6,1.72429951]
[1767701877624,0.002,3238.6,3237.7,0.91529951]
[1767701877833,0.002,3238.6,3237.7,0.94001681]
[1767701878036,0.002,3238.6,3237.9,0.91529951]
[1767701879830,0.002,3238.6,3237.9,0.91629951]
[1767701880603,0.99918659,3238.5,3237.9,0.001]
[1767701881607,0.002,3238.6,3238.0,0.98047625]
[1767701883199,0.002,3238.6,3237.9,0.001]
[1767701883200,0.90305035,3238.6,3237.9,0.001]
[1767701885098,0.002,3238.6,3237.9,0.98147625]
[1767701885698,0.002,3238.6,3237.9,0.001]
[1767701885926,0.90305035,3238.6,3237.9,0.001]
[1767701886100,0.002,3238.6,3238.0,0.98047625]
[1767701888654,0.002,3238.6,3237.9,0.001]
[1767701888929,3.89832146,3239.1,3237.9,0.001]
[1767701888930,3.8982796,3239.1,3238.2,0.98047625]
[1767701889131,0.479933,3239.0,3238.2,0.98047625]
[1767701889324,0.90105035,3238.9,3237.9,0.001]
[1767701890434,0.90105035,3238.9,3237.9,0.98147625]
[1767701890826,3.98852498,3238.9,3237.9,0.98147625]
[1767701891031,1.73772411,3238.9,3237.9,0.98147625]
[1767701891221,4.82523034,3238.9,3237.9,0.98147625]
[1767701891526,0.002,3238.6,3237.9,0.98147625]
[1767701891730,3.98554525,3238.9,3237.9,0.98147625]
[1767701892535,0.90105035,3238.8,3237.9,0.001]
[1767701893809,3.98855658,3238.9,3237.9,0.98147625]
[1767701895243,0.90105035,3238.8,3237.9,0.98147625]
[1767701895445,3.08750623,3238.9,3238.0,0.98047625]
[1767701896051,3.98842299,3239.0,3238.0,0.98047625]
[1767701896351,0.90105035,3239.0,3238.0,0.98047625]
[1767701898746,3.08740485,3239.0,3238.0,0.98047625]
[1767701900145,3.89828044,3239.1,3238.0,0.98047625]
[1767701900352,4.79933079,3239.1,3238.0,0.98047625]
[1767701900650,0.90105035,3238.9,3237.9,0.001]
[1767701900853,3.08739715,3239.0,3237.9,0.98147625]
[1767701901032,3.9884475,3239.0,3237.9,0.98147625]
[1767701901544,0.90105035,3238.9,3237.9,0.98147625]
[1767701901753,0.90105035,3238.9,3237.9,0.001]
[1767701901947,0.90105035,3238.9,3238.0,0.98047625]
[1767701902132,3.9884475,3239.0,3238.0,0.98047625]
[1767701903356,0.90105035,3239.0,3238.0,0.98047625]
[1767701903822,0.002,3238.7,3238.0,0.98047625]
[1767701904934,0.90105035,3238.6,3237.9,0.001]
[1767701905656,0.002,3238.7,3238.0,0.98047625]
[1767701905828,0.90105035,3238.6,3237.9,0.001]
[1767701906024,0.002,3238.7,3238.1,0.98047625]
[1767701907149,0.002,3238.7,3237.9,0.001]
[1767701907446,0.002,3238.7,3238.0,0.98047625]
[1767701907652,0.90105035,3238.6,3237.9,0.001]
[1767701907855,0.002,3238.7,3237.9,0.001]
[1767701908027,0.002,3238.7,3237.9,0.98147625]
[1767701910471,0.002,3238.7,3237.9,0.001]
[1767701910749,0.90305035,3238.7,3237.9,0.001]
[1767701911528,0.002,3238.7,3237.9,0.001]
[1767701912558,0.92383665,3238.7,3237.9,0.001]
[1767701912741,0.002,3238.7,3238.0,0.97915347]
[1767701913158,0.00099897,3238.7,3237.9,0.001]
[1767701913332,0.80899587,3239.1,3238.4,0.97915347]
[1767701913667,0.80899587,3239.1,3238.1,0.97915347]
[1767701913831,0.92183665,3239.2,3238.1,0.97915347]
[1767701914031,0.92183665,3239.1,3237.9,0.001]
[1767701914356,0.809,3239.0,3237.9,0.98015347]
[1767701915263,0.92183665,3238.9,3237.9,0.001]
[1767701915559,3.89639752,3239.0,3238.0,0.97915347]
[1767701915743,4.85382771,3239.0,3238.0,0.97915347]
[1767701916960,4.85382771,3239.0,3237.1,0.03089184]
[1767701916961,5.67790436,3238.6,3237.1,0.03089184]
[1767701917145,5.67790436,3238.6,3236.8,1.01104818]
[1767701917146,0.92183665,3238.5,3236.8,1.01104818]
[1767701917346,5.67790436,3238.6,3236.9,0.97915347]
[1767701917347,0.92183665,3238.3,3236.9,0.97915347]
[1767701917730,0.809,3238.4,3236.9,0.97915347]
[1767701917961,1.45769044,3238.4,3236.9,0.97915347]
[1767701918947,1.45769044,3238.4,3237.0,0.0247173]
[1767701918948,4.00997203,3238.2,3237.0,0.0247173]
[1767701919270,0.92183665,3238.2,3237.2,0.0247173]
[1767701919441,3.08808411,3238.3,3237.2,0.0247173]
[1767701919442,1.32282873,3238.1,3237.2,0.0247173]
[1767701919642,0.92183665,3238.0,3237.2,0.0247173]
[1767701920350,0.40099208,3238.1,3237.0,0.97915347]
[1767701920559,0.92183665,3238.0,3236.8,0.001]
[1767701920752,0.92183665,3238.0,3236.9,0.0247173]
[1767701921154,0.92183665,3237.8,3236.9,0.0247173]
[1767701921444,0.92183665,3237.7,3236.9,0.0247173]
[1767701922564,0.809,3237.8,3236.8,0.001]
[1767701922767,0.809,3237.8,3236.9,1.00387077]
[1767701922944,1.29092582,3237.8,3236.9,1.00387077]
[1767701924172,1.29092582,3237.8,3236.9,0.97915347]
[1767701925355,0.92183665,3237.7,3236.8,0.001]
[1767701925558,0.92183665,3237.7,3236.9,0.0247173]
[1767701925963,0.92183665,3237.7,3236.8,0.001]
[1767701926170,0.92183665,3237.6,3236.8,0.001]
[1767701928143,6.17760616,3237.5,3236.8,0.001]
[1767701928544,3.08880308,3237.5,3236.8,0.001]
[1767701929678,0.92183665,3237.4,3236.8,0.001]
[1767701929878,0.809,3237.3,3236.8,0.001]
[1767701930463,1.1987904,3237.3,3236.8,0.001]
[1767701930866,0.809,3237.3,3236.8,0.001]
[1767701931557,0.809,3237.3,3236.8,0.98015347]
[1767701931878,0.809,3237.3,3236.8,0.001]
[1767701933587,3.08874722,3237.6,3236.8,0.98015347]
[1767701933758,0.809,3237.4,3236.8,0.98015347]
[1767701938986,1.19877744,3237.4,3236.8,0.98015347]
[1767701939289,4.28768625,3237.4,3236.8,0.98015347]
[1767701941291,1.19877744,3237.4,3236.8,0.98015347]
[1767701941490,0.809,3237.4,3236.8,0.98015347]
[1767701942586,0.809,3237.4,3237.1,0.001]
[1767701943001,0.53013069,3237.7,3237.1,0.92869046]
[1767701943297,0.50079193,3237.6,3237.3,0.92322356]
[1767701943496,0.41082354,3237.6,3237.1,0.001]
[1767701943666,0.41082354,3237.6,3237.2,0.92322356]
[1767701944062,3.89732615,3238.0,3237.2,0.92322356]
[1767701944465,0.809,3238.0,3237.2,0.92322356]
[1767701945065,3.89734239,3238.0,3237.2,0.92322356]
[1767701945366,0.809,3238.0,3237.2,0.92322356]
[1767701945565,0.809,3238.0,3237.2,1.62246356]
[1767701945792,3.89733878,3238.0,3237.2,1.62246356]
[1767701946294,0.809,3238.0,3237.2,1.62246356]
[1767701946791,3.89735635,3238.0,3237.2,1.62246356]
[1767701947163,0.809,3238.0,3237.2,1.62246356]
[1767701947458,0.98469351,3237.9,3237.3,0.16234636]
[1767701947663,3.8973369,3238.0,3237.2,0.69924]
[1767701947862,3.8973369,3238.0,3237.2,1.62246356]
[1767701948378,4.88203041,3238.0,3237.2,1.62246356]
[1767701950998,0.98469351,3237.9,3237.2,0.69924]
[1767701953293,3.8973369,3238.0,3237.2,1.62246356]
[1767701953487,3.8973369,3238.0,3237.3,0.92322356]
[1767701954191,0.98469351,3237.9,3237.2,0.69924]
[1767701954997,3.8973369,3238.0,3237.2,0.69924]
[1767701955389,3.8973369,3238.0,3237.5,0.001]
[1767701955792,0.002,3237.7,3237.5,0.001]
[1767701959599,0.98669351,3238.0,3237.6,5.43250368]
[1767701960276,0.98669351,3238.0,3237.6,5.97585405]
[1767701961005,0.002,3238.0,3237.6,5.97585405]
[1767701963908,0.002,3238.0,3237.6,5.9671476]
[1767701965006,0.002,3238.0,3237.6,0.54335037]
[1767701965188,0.002,3238.0,3237.5,0.001]
[1767701967994,0.002,3237.7,3237.5,0.92422356]
[1767701968196,0.002,3237.7,3237.5,0.001]
[1767701970602,0.98669351,3237.7,3237.5,0.001]
[1767701971028,0.002,3237.7,3237.5,0.001]
[1767701971332,0.002,3237.7,3237.5,0.93618437]
[1767701971621,0.002,3237.7,3237.5,0.001]
[1767701972202,0.98345344,3237.7,3237.5,0.001]
[1767701973089,0.002,3237.7,3237.5,0.001]
[1767701974401,0.002,3237.7,3237.5,0.93618437]
[1767701975128,0.002,3237.7,3237.5,0.001]
[1767701978425,0.98345344,3237.7,3237.5,0.001]
[1767701980137,0.002,3237.7,3237.5,0.001]
[1767701980714,3.09061309,3237.7,3237.5,0.001]
[1767701981036,3.09061309,3237.7,3237.1,0.001]
[1767701981037,0.809,3237.6,3237.1,0.001]
[1767701981600,3.89770768,3237.6,3237.1,0.001]
[1767701981924,0.809,3237.6,3237.1,0.001]
[1767701982927,3.89771637,3237.6,3237.1,0.001]
[1767701986535,0.809,3237.6,3237.1,0.001]
[1767701986702,3.89774723,3237.6,3237.1,0.001]
[1767701986907,4.69469452,3237.6,3237.1,0.001]
[1767701989131,5.67614796,3237.6,3237.1,0.001]
[1767701992214,5.67614796,3237.6,3237.4,0.001]
[1767701994516,5.67614796,3237.6,3237.1,0.00067831]
[1767701995436,8.76486929,3237.6,3237.1,0.00067831]
[1767701995642,0.87668693,3237.5,3237.1,0.00067831]
[1767701997016,0.928848,3237.4,3237.1,0.00067831]
[1767701997726,4.01783116,3237.4,3237.1,0.00067831]
[1767702000015,0.928848,3237.3,3237.1,0.00067831]
[1767702000344,6.17796632,3237.4,3236.8,0.001]
[1767702000551,0.70546533,3237.3,3236.8,0.001]
[1767702000719,0.928848,3237.2,3236.3,0.001]
[1767702000920,0.70546533,3237.3,3236.3,0.001]
[1767702000921,0.928848,3237.0,3236.3,0.001]
[1767702001132,0.809,3237.1,3236.4,0.92637879]
[1767702001922,1.7925428,3237.1,3236.4,0.92637879]
[1767702002131,3.26855572,3237.0,3236.4,0.92637879]
[1767702002718,3.26855572,3237.0,3236.3,0.001]
[1767702002920,0.17925428,3237.0,3236.3,0.9493932]
[1767702003351,3.26857804,3237.0,3236.3,0.9493932]
[1767702003538,0.4077578,3236.9,3236.3,0.9493932]
[1767702003941,0.4077578,3236.9,3236.7,0.001]
[1767702004938,3.49714297,3236.9,3236.7,0.001]
[1767702005149,3.49714297,3236.9,3236.1,0.9935932]
[1767702005150,6.66752383,3236.8,3236.1,0.9935932]
[1767702005335,0.9835428,3236.6,3235.7,0.001]
[1767702005656,0.9835428,3236.4,3235.7,0.001]
[1767702005844,0.809,3236.5,3235.7,0.001]
[1767702006049,0.809,3236.5,3235.7,0.9945932]
[1767702006838,0.809,3236.5,3235.7,0.001]
[1767702006839,0.9835428,3236.4,3235.7,0.001]
[1767702007039,0.9835428,3236.2,3235.7,0.001]
[1767702007251,0.9835428,3236.2,3234.8,1.0183105]
[1767702007441,0.9835428,3236.2,3234.8,0.9935932]
[1767702008941,0.9835428,3236.0,3234.8,0.9935932]
[1767702009141,0.9835428,3235.8,3234.8,0.9935932]
[1767702009341,1.16289708,3235.7,3234.8,0.9935932]
[1767702009547,1.16289708,3235.7,3234.3,0.9935932]
[1767702010655,1.16289708,3235.7,3234.1,2.113849]
[1767702010952,0.17935428,3235.7,3234.4,0.9935932]
[1767702011147,0.81,3235.6,3234.6,0.9935932]
[1767702011347,1.52704046,3235.6,3234.6,0.9935932]
[1767702011540,0.9835428,3235.5,3234.6,0.9935932]
[1767702011958,1.52704046,3235.6,3234.6,0.9935932]
[1767702013163,0.81,3235.6,3234.6,0.9935932]
[1767702014161,0.9835428,3235.5,3234.4,1.02451083]
[1767702014832,0.81,3235.6,3234.4,1.02451083]
[1767702015759,0.9835428,3235.5,3234.4,1.02451083]
[1767702016058,0.9835428,3235.5,3234.5,0.67332092]
[1767702016277,0.9835428,3235.5,3234.9,0.001]
[1767702017938,3.90062556,3235.6,3234.9,0.001]
[1767702018143,4.88416836,3235.6,3234.9,0.001]
[1767702018866,0.81,3235.6,3234.9,0.001]
[1767702019164,0.81,3235.6,3235.0,0.9935932]
[1767702019534,3.09008873,3236.2,3235.0,0.9935932]
[1767702019766,3.09008873,3236.2,3234.9,0.001]
[1767702019767,0.17925428,3236.3,3235.2,0.9935932]
[1767702020063,1.89579872,3236.8,3235.4,0.9935932]
[1767702020064,0.81,3236.1,3235.4,0.9935932]
[1767702020275,4.98531092,3236.8,3235.6,0.9935932]
[1767702020776,0.91225592,3236.8,3235.6,0.9935932]
[1767702020951,0.91225592,3236.8,3235.6,1.0183105]
[1767702021786,0.91225592,3236.8,3235.9,6.67757423]
[1767702022075,0.002,3236.9,3235.9,6.67757423]
[1767702022076,0.002,3236.9,3236.1,0.9935932]
[1767702034499,0.92436012,3236.9,3235.8,0.97845011]
[1767702034648,0.92436012,3236.9,3235.7,0.002]
[1767702034649,0.92236012,3236.8,3235.7,0.002]
[1767702036364,6.17913306,3236.7,3235.7,0.98045011]
[1767702036565,0.61791331,3236.6,3235.7,0.98045011]
[1767702037150,1.54027343,3236.6,3235.7,0.98045011]
[1767702038485,7.10187502,3236.5,3235.7,0.98045011]
[1767702038857,0.92236012,3236.4,3235.7,0.002]
[1767702039885,0.92236012,3236.4,3235.4,0.002]
[1767702039886,0.92236012,3236.3,3235.4,0.002]
[1767702040086,0.92236012,3236.2,3235.4,0.002]
[1767702040384,0.92236012,3236.2,3234.8,0.97845011]
[1767702040682,0.92236012,3236.0,3234.5,0.97845011]
[1767702040854,0.92236012,3235.8,3234.5,0.97845011]
[1767702041589,0.92236012,3235.8,3235.6,0.002]
[1767702041774,0.92236012,3235.8,3234.5,0.97845011]
[1767702042084,0.92236012,3235.8,3234.4,0.002]
[1767702042590,1.82927782,3235.9,3234.4,0.002]
[1767702042591,0.92236012,3235.6,3234.4,0.002]
[1767702044876,4.01307252,3235.5,3234.4,0.98045011]
[1767702045072,0.40130725,3235.4,3234.4,0.98045011]
[1767702046299,0.40130725,3235.4,3234.6,0.97845011]
[1767702047507,0.92236012,3235.1,3234.4,0.002]
[1767702047719,0.92236012,3235.1,3234.0,0.97845011]
[1767702049095,7.10474032,3235.0,3234.0,0.97845011]
[1767702051282,7.10474032,3235.0,3233.4,0.81]
[1767702051283,0.92236012,3234.9,3233.4,0.81]
[1767702051484,0.92236012,3234.9,3233.3,0.39164304]
[1767702051485,0.92236012,3234.7,3233.5,0.97845011]
[1767702052484,3.248,3234.6,3233.5,0.97845011]
[1767702052690,0.92236012,3234.5,3233.5,0.97845011]
[1767702053591,0.81,3234.5,3233.5,0.97845011]
[1767702054190,0.81,3234.5,3234.3,0.002]
[1767702054390,0.81,3234.5,3234.0,0.002]
[1767702054795,0.81,3234.8,3234.0,0.002]
[1767702055105,0.92236012,3234.7,3233.8,0.15673566]
[1767702055783,2.47251281,3234.6,3233.8,0.15673566]
[1767702058096,2.47251281,3234.6,3233.9,6.64973161]
[1767702058606,2.47251281,3234.6,3234.0,0.96575058]
[1767702058811,2.40024098,3234.6,3234.3,5.68398103]
[1767702059802,2.40024098,3234.6,3234.3,6.64973161]
[1767702060005,2.40024098,3234.6,3234.4,0.96575058]
[1767702061613,2.40024098,3234.6,3234.5,5.43999636]
[1767702061787,3.09074837,3235.5,3234.4,0.96575058]
[1767702061788,0.7298,3235.7,3234.4,0.23494955]
[1767702061988,0.7298,3235.7,3234.5,5.43999636]
[1767702062685,0.73080103,3235.5,3234.5,6.39943759]
[1767702062884,0.73080103,3235.8,3235.1,5.43999636]
[1767702066715,0.73080103,3235.6,3235.1,5.43999636]
[1767702066915,0.73080103,3235.6,3234.8,6.39943759]
[1767702067219,0.001,3235.5,3234.8,6.39943759]
[1767702067795,0.73180103,3235.5,3234.8,0.95944123]
[1767702068023,0.73080103,3235.4,3234.2,6.39943759]
[1767702068321,0.73080103,3235.4,3234.5,0.81]
[1767702068694,0.73080103,3235.4,3234.5,6.24999636]
[1767702068890,0.73080103,3235.2,3234.5,6.24999636]
[1767702070623,0.73080103,3235.2,3234.5,0.81]
[1767702070821,0.6912608,3235.1,3234.5,0.81]
[1767702071018,6.1823802,3235.0,3234.5,0.81]
[1767702071205,3.0911901,3235.0,3234.5,0.81]
[1767702072898,6.1823802,3235.0,3234.5,0.81]
[1767702073197,3.0911901,3235.0,3234.5,0.81]
[1767702074522,3.54610126,3235.9,3234.5,0.81]
[1767702074721,0.00736917,3235.5,3234.5,0.07819794]
[1767702074924,0.29600671,3235.4,3234.5,0.07819794]
[1767702075126,0.28863754,3235.3,3234.5,0.07819794]
[1767702075326,3.37963655,3235.2,3234.5,1.03763917]
[1767702075527,0.28863754,3235.1,3234.5,1.03763917]
[1767702077045,3.85515141,3235.0,3234.5,1.03763917]
[1767702079226,3.85515141,3235.0,3234.9,5.43999636]
[1767702081930,3.85515141,3235.0,3234.9,6.39943759]
[1767702084910,3.85515141,3235.0,3234.9,5.43999636]
[1767702086534,3.85515141,3235.0,3234.5,0.07819794]
[1767702086738,3.85515141,3235.0,3234.7,5.43999636]
[1767702091138,3.85515141,3235.0,3234.6,0.81]
[1767702091503,0.92787411,3235.1,3234.6,0.81]
[1767702092006,4.97950646,3235.3,3234.5,2.01613608]
[1767702093242,4.97950646,3235.3,3234.7,5.43999636]
[1767702093540,3.70642469,3235.2,3234.7,5.43999636]
[1767702097045,3.70642469,3235.2,3234.5,2.01613608]
[1767702097214,3.70642469,3235.2,3234.6,5.43999636]
[1767702097945,3.70642469,3235.2,3234.6,7.45613244]
[1767702100343,3.70642469,3235.2,3234.7,2.01613608]
[1767702100848,3.70642469,3235.2,3234.9,2.01613608]
[1767702105341,3.70642469,3235.2,3234.7,2.01613608]
[1767702108559,3.09094328,3235.3,3234.7,2.01613608]
[1767702109125,3.09081218,3235.4,3234.7,2.01613608]
[1767702109126,3.09080793,3235.4,3234.7,2.01613608]
[1767702109441,0.28924033,3235.3,3234.8,0.78930371]
[1767702109649,3.85515141,3235.3,3234.8,2.80543979]
[1767702111070,3.85515141,3235.3,3235.0,2.01613608]
[1767702113362,6.946061,3235.3,3234.6,2.45304078]
[1767702113560,6.946061,3235.3,3234.7,2.82613608]
[1767702113859,6.946061,3235.3,3234.8,2.01613608]
[1767702114243,0.001,3235.0,3234.8,2.01613608]
[1767702116870,4.97936175,3235.4,3234.7,0.81]
[1767702117351,4.97936175,3235.4,3234.7,2.82613608]